bitfinex-derivatives/quotes_BTCF0:USTF0_20250117
["timestamp","ask_amount","ask_price","bid_price","bid_amount"]
[1737142628650,0.13411887,105200.0,105190.0,0.5836]
[1737142630846,0.13411887,105200.0,105190.0,0.4749]
[1737142631843,0.047498,105200.0,105190.0,0.522403]
[1737142632147,0.13411887,105200.0,105190.0,0.522403]
[1737142632938,0.047498,105200.0,105190.0,0.522403]
[1737142633146,0.70411687,105210.0,105200.0,0.047498]
[1737142633549,0.70411687,105210.0,105200.0,0.408298]
[1737142633938,0.617496,105210.0,105200.0,0.408298]
[1737142634344,0.70411687,105210.0,105200.0,0.408298]
[1737142634642,0.70411687,105210.0,105190.0,0.80467849]
[1737142634945,0.13411887,105200.0,105190.0,0.80467849]
[1737142635344,0.13411887,105200.0,105190.0,0.75717849]
[1737142635546,0.13411887,105200.0,105190.0,0.4749]
[1737142636244,0.49491887,105200.0,105190.0,0.1141]
[1737142636452,0.617503,105190.0,105180.0,0.39677849]
[1737142636647,0.70412387,105190.0,105180.0,0.39677849]
[1737142636841,0.7039089,105190.0,105180.0,0.75757849]
[1737142637046,0.7039089,105190.0,105180.0,0.4753]
[1737142637654,0.7039089,105190.0,105180.0,0.522807]
[1737142637851,0.7039089,105190.0,105180.0,0.4753]
[1737142638647,0.7039089,105190.0,105180.0,0.3608]
[1737142638853,0.61728803,105190.0,105180.0,0.49492787]
[1737142639047,0.04728803,105190.0,105180.0,0.49492787]
[1737142639241,0.08662087,105200.0,105180.0,0.49492787]
[1737142639446,0.0475,105200.0,105190.0,0.49492187]
[1737142639657,0.0475,105200.0,105190.0,0.61192187]
[1737142639848,0.57,105210.0,105190.0,0.61192187]
[1737142640046,0.57,105210.0,105200.0,0.72131887]
[1737142640350,0.04749,105220.0,105210.0,0.047494]
[1737142640554,0.558207,105230.0,105220.0,0.047489]
[1737142640752,1.128207,105230.0,105220.0,0.60320987]
[1737142641146,1.128207,105230.0,105220.0,0.516589]
[1737142642157,1.21482787,105230.0,105220.0,0.516589]
[1737142642348,1.128207,105230.0,105220.0,0.516589]
[1737142644057,1.08072,105230.0,105220.0,0.60320987]
[1737142645161,1.128204,105230.0,105220.0,0.60320987]
[1737142645751,1.128204,105230.0,105220.0,0.88548836]
[1737142646354,1.128204,105230.0,105220.0,0.79886749]
[1737142647764,1.128204,105230.0,105220.0,1.11413218]
[1737142648162,0.64482487,105230.0,105220.0,0.64503218]
[1737142649660,0.64482487,105230.0,105220.0,0.59754318]
[1737142649852,0.047489,105220.0,105210.0,1.02847777]
[1737142650055,0.617489,105220.0,105210.0,1.02847777]
[1737142650864,0.617489,105220.0,105210.0,1.35060941]
[1737142651066,0.70410987,105220.0,105210.0,1.35060941]
[1737142651259,0.617489,105220.0,105210.0,1.35060941]
[1737142651662,0.617489,105220.0,105210.0,1.43723028]
[1737142653164,0.617489,105220.0,105210.0,1.15495179]
[1737142654367,0.617489,105220.0,105210.0,1.06833092]
[1737142655264,0.617489,105220.0,105210.0,1.46143786]
[1737142658970,0.01103962,105240.0,105220.0,0.047485]
[1737142659276,0.00142611,105240.0,105230.0,0.73460587]
[1737142659569,0.00142611,105240.0,105230.0,1.125485]
[1737142660066,0.00142611,105240.0,105230.0,1.78552692]
[1737142660766,0.00142611,105240.0,105230.0,1.87214779]
[1737142661272,0.45574,105270.0,105250.0,0.047474]
[1737142661273,0.04747,105270.0,105250.0,0.047474]
[1737142661472,0.29428883,105280.0,105270.0,0.047466]
[1737142661773,0.74708883,105280.0,105270.0,0.408266]
[1737142662368,0.8337097,105280.0,105270.0,0.408266]
[1737142665569,0.62698883,105280.0,105270.0,0.408266]
[1737142665879,0.7136097,105280.0,105270.0,0.408266]
[1737142668676,0.1436097,105280.0,105270.0,0.408266]
[1737142669769,0.1436097,105280.0,105270.0,0.57707418]
[1737142673274,0.1436097,105280.0,105270.0,0.21627418]
[1737142673485,0.1436097,105280.0,105270.0,0.57707418]
[1737142673877,0.1436097,105280.0,105270.0,0.52960818]
[1737142674483,0.00952583,105280.0,105270.0,0.61622905]
[1737142674780,0.04888747,105290.0,105280.0,0.047461]
[1737142674981,0.04888747,105290.0,105280.0,0.408261]
[1737142675175,0.14482726,105290.0,105280.0,0.408261]
[1737142676487,0.05820639,105290.0,105280.0,0.49488187]
[1737142676774,0.05820639,105290.0,105280.0,0.408261]
[1737142676974,0.05820639,105290.0,105280.0,0.88864715]
[1737142677180,0.04888747,105290.0,105280.0,0.88864715]
[1737142677681,0.04888747,105290.0,105280.0,0.80202628]
[1737142679184,0.57142547,105290.0,105280.0,0.88864715]
[1737142679788,0.15695752,105300.0,105280.0,0.88864715]
[1737142679985,0.15695752,105300.0,105290.0,0.84667687]
[1737142681484,0.15695752,105300.0,105290.0,1.43546957]
[1737142681990,0.1,105300.0,105290.0,1.43546957]
[1737142682284,0.617449,105310.0,105290.0,1.43546957]
[1737142682582,0.617449,105310.0,105300.0,0.49487287]
[1737142683587,0.617449,105310.0,105300.0,0.88798979]
[1737142683893,0.57,105310.0,105300.0,0.88798979]
[1737142684185,0.558007,105320.0,105310.0,0.047447]
[1737142684381,0.558007,105320.0,105310.0,0.408247]
[1737142684585,0.41900883,105330.0,105320.0,0.047443]
[1737142684887,0.62820883,105330.0,105320.0,0.528443]
[1737142685074,0.62820883,105330.0,105320.0,0.647543]
[1737142685278,0.62820883,105330.0,105320.0,0.73416387]
[1737142685483,0.077435,105340.0,105330.0,0.047438]
[1737142685777,0.03,105340.0,105330.0,0.49485887]
[1737142686180,0.077434,105340.0,105330.0,0.49485887]
[1737142686382,0.077434,105340.0,105330.0,0.408238]
[1737142687181,0.077434,105340.0,105330.0,0.57671668]
[1737142689284,0.16405487,105340.0,105330.0,0.57671668]
[1737142690584,0.077434,105340.0,105330.0,0.408238]
[1737142691788,0.16405487,105340.0,105330.0,0.408238]
[1737142693196,0.077434,105340.0,105330.0,0.408238]
[1737142694783,0.03,105340.0,105330.0,0.49485887]
[1737142695081,0.077434,105340.0,105330.0,0.60875887]
[1737142695288,0.077434,105340.0,105330.0,0.522138]
[1737142695492,0.16405487,105340.0,105330.0,0.408238]
[1737142696095,0.077434,105340.0,105330.0,0.408238]
[1737142696784,0.16405487,105340.0,105330.0,0.408238]
[1737142697589,0.047438,105330.0,105320.0,0.16847868]
[1737142697794,0.047443,105320.0,105310.0,0.22463824]
[1737142698000,0.61656387,105320.0,105310.0,0.22463824]
[1737142698292,0.61656387,105320.0,105310.0,0.27208524]
[1737142698591,0.408241,105330.0,105320.0,0.047443]
[1737142698795,0.047441,105330.0,105320.0,0.408243]
[1737142698985,0.28575687,105340.0,105330.0,0.047438]
[1737142699191,0.077436,105340.0,105330.0,0.408238]
[1737142699393,0.16405687,105340.0,105330.0,0.408238]
[1737142703988,0.16405687,105340.0,105320.0,0.270941]
[1737142704298,0.13405887,105330.0,105320.0,0.270941]
[1737142704492,0.047443,105320.0,105310.0,0.91258054]
[1737142704800,0.13406387,105320.0,105310.0,0.91258054]
[1737142704991,0.70406387,105320.0,105310.0,0.91258054]
[1737142705298,0.617443,105320.0,105310.0,0.63239524]
[1737142705495,0.047443,105320.0,105310.0,0.63239524]
[1737142705996,0.70406387,105320.0,105310.0,0.63239524]
[1737142707599,0.13406387,105320.0,105310.0,0.63239524]
[1737142708692,0.70406387,105320.0,105310.0,0.63239524]
[1737142709292,0.94476387,105320.0,105310.0,0.63239524]
[1737142709898,0.37476387,105320.0,105310.0,0.63239524]
[1737142710105,0.37476387,105320.0,105310.0,0.6322072]
[1737142711293,0.047443,105320.0,105310.0,1.21172044]
[1737142712101,0.047443,105320.0,105310.0,0.98776024]
[1737142712102,0.13406387,105320.0,105310.0,0.98776024]
[1737142715003,0.13406387,105320.0,105310.0,1.3239826]
[1737142715301,0.047443,105320.0,105310.0,1.3239826]
[1737142715502,0.047439,105330.0,105320.0,0.047443]
[1737142715713,0.03,105340.0,105330.0,0.047438]
[1737142716000,0.04884548,105370.0,105360.0,0.047425]
[1737142716193,0.04884548,105370.0,105360.0,0.85564587]
[1737142716391,0.04884548,105370.0,105360.0,1.11964587]
[1737142716602,0.04884548,105370.0,105360.0,1.033025]
[1737142717706,0.04884548,105370.0,105360.0,1.61358416]
[1737142720107,0.13546635,105370.0,105360.0,1.61358416]
[1737142720308,0.13546635,105370.0,105360.0,1.49688416]
[1737142720507,0.13546635,105370.0,105360.0,0.65798416]
[1737142720700,0.13546635,105370.0,105360.0,1.01878416]
[1737142721207,0.13546635,105370.0,105360.0,0.438225]
[1737142722107,0.04884548,105370.0,105360.0,0.52484587]
[1737142722306,0.04884548,105370.0,105360.0,0.438225]
[1737142722609,0.04884548,105370.0,105360.0,0.52484587]
[1737142722904,0.00142448,105370.0,105360.0,0.52484587]
[1737142724299,0.047419,105380.0,105370.0,0.047421]
[1737142724500,0.047419,105380.0,105370.0,0.438221]
[1737142725407,0.13403987,105380.0,105370.0,0.438221]
[1737142728111,0.047419,105380.0,105370.0,0.438221]
[1737142729213,0.047419,105380.0,105370.0,0.556121]
[1737142729609,0.047419,105380.0,105370.0,0.64274187]
[1737142730414,0.0093368,105390.0,105370.0,0.64274187]
[1737142730728,0.047412,105390.0,105380.0,0.408216]
[1737142730912,0.13403287,105390.0,105380.0,0.3608]
[1737142731213,0.047416,105380.0,105370.0,0.556118]
[1737142731411,0.047416,105380.0,105370.0,0.3908]
[1737142731412,0.13403687,105380.0,105370.0,0.3908]
[1737142731609,0.047416,105380.0,105370.0,0.438221]
[1737142732503,0.047416,105380.0,105370.0,0.52484187]
[1737142733007,0.047416,105380.0,105370.0,0.438221]
[1737142736108,0.13403687,105380.0,105370.0,0.438221]
[1737142736311,0.13403687,105380.0,105370.0,0.03]
[1737142741012,0.14373711,105380.0,105370.0,0.03]
[1737142741412,0.14373711,105380.0,105370.0,0.3908]
[1737142741613,0.14373711,105380.0,105370.0,0.03]
[1737142742921,1.45704787,105400.0,105370.0,0.52484187]
[1737142743122,0.047415,105390.0,105380.0,0.408215]
[1737142743422,1.018529,105400.0,105390.0,0.047412]
[1737142743610,0.657729,105400.0,105390.0,0.408212]
[1737142744922,0.657729,105400.0,105390.0,0.49483287]
[1737142745527,0.61032,105400.0,105390.0,0.49483287]
[1737142745822,0.61032,105400.0,105390.0,1.07278927]
[1737142746523,0.1,105400.0,105390.0,1.07278927]
[1737142746721,0.094794,105430.0,105390.0,1.61413795]
[1737142746920,0.094794,105430.0,105420.0,0.49481887]
[1737142747126,0.047395,105430.0,105420.0,0.49481887]
[1737142747428,0.047395,105430.0,105420.0,0.73291887]
[1737142747818,0.408188,105450.0,105420.0,0.81953974]
[1737142748022,0.408188,105450.0,105430.0,0.49480987]
[1737142748023,0.047391,105440.0,105430.0,0.49480987]
[1737142748319,0.37014368,105450.0,105430.0,0.60820987]
[1737142748524,0.05672968,105450.0,105440.0,0.08662087]
[1737142748722,0.05672968,105450.0,105440.0,0.047389]
[1737142749432,0.047386,105450.0,105440.0,0.13400987]
[1737142749624,0.047386,105450.0,105440.0,0.047389]
[1737142749825,0.047386,105450.0,105440.0,0.408189]
[1737142750523,0.047386,105450.0,105440.0,0.3608]
[1737142750524,0.13400687,105450.0,105440.0,0.3608]
[1737142750826,0.047389,105440.0,105430.0,0.408193]
[1737142751032,0.13400987,105440.0,105430.0,0.408193]
[1737142751222,0.13400987,105440.0,105430.0,0.3608]
[1737142751731,0.13400987,105440.0,105420.0,0.92702579]
[1737142751732,0.047394,105430.0,105420.0,0.92702579]
[1737142751922,0.047394,105430.0,105420.0,0.73291687]
[1737142752117,0.3608,105450.0,105420.0,0.73291687]
[1737142752327,0.04739,105440.0,105430.0,0.408191]
[1737142753734,0.04739,105440.0,105430.0,0.49481187]
[1737142753933,0.49701413,105460.0,105430.0,0.49481187]
[1737142754132,0.047386,105450.0,105440.0,0.13400787]
[1737142754333,0.047386,105450.0,105440.0,0.047387]
[1737142754536,0.13400687,105450.0,105440.0,0.047387]
[1737142756140,0.047389,105440.0,105430.0,0.408193]
[1737142756346,0.13400987,105440.0,105430.0,0.408193]
[1737142757228,0.408189,105440.0,105430.0,0.047393]
[1737142757437,0.408189,105440.0,105400.0,0.04882804]
[1737142757438,0.49480987,105440.0,105400.0,0.04882804]
[1737142757734,0.49480987,105440.0,105400.0,0.65635291]
[1737142757735,0.047403,105410.0,105400.0,0.65635291]
[1737142758936,0.047403,105410.0,105400.0,0.60894791]
[1737142759127,0.13402387,105410.0,105400.0,0.52232704]
[1737142759334,0.13402387,105410.0,105400.0,0.47492304]
[1737142759740,0.49482387,105410.0,105400.0,0.11412304]
[1737142760641,0.13402387,105410.0,105400.0,0.11412304]
[1737142761344,0.047407,105400.0,105390.0,0.52741]
[1737142761537,0.13402787,105400.0,105390.0,0.52741]
[1737142762230,0.047407,105400.0,105390.0,0.52741]
[1737142762429,0.13402787,105400.0,105390.0,0.52741]
[1737142762835,0.047407,105400.0,105390.0,0.52741]
[1737142769246,0.047405,105410.0,105400.0,0.047407]
[1737142769446,0.047405,105410.0,105400.0,0.49482787]
[1737142769653,0.047405,105410.0,105400.0,0.047407]
[1737142769954,0.047405,105410.0,105400.0,0.49482787]
[1737142770351,0.047405,105410.0,105400.0,0.408207]
[1737142771354,0.047405,105410.0,105400.0,0.63239016]
[1737142772558,0.408205,105410.0,105400.0,0.27159016]
[1737142772950,0.49482587,105410.0,105400.0,0.22418316]
[1737142773856,0.047407,105400.0,105390.0,0.75159316]
[1737142775153,0.13402787,105400.0,105390.0,1.10492517]
[1737142775454,0.13402787,105400.0,105390.0,0.93831517]
[1737142776653,0.24802787,105400.0,105390.0,0.93831517]
[1737142776852,0.24802787,105400.0,105390.0,0.57751517]
[1737142776853,0.72982787,105400.0,105390.0,0.57751517]
[1737142777055,0.84132787,105400.0,105390.0,0.57751517]
[1737142777248,0.84132787,105400.0,105390.0,0.80206647]
[1737142778558,0.84132787,105400.0,105390.0,0.2245513]
[1737142779056,0.84132787,105400.0,105390.0,0.2719633]
[1737142780259,0.85070439,105400.0,105390.0,0.2719633]
[1737142780460,0.48990439,105400.0,105390.0,0.2719633]
[1737142782265,0.48990439,105400.0,105390.0,0.2245513]
[1737142782660,0.85070439,105400.0,105390.0,0.2245513]
[1737142786875,0.85070439,105400.0,105390.0,0.50528109]
[1737142787568,0.047407,105400.0,105390.0,0.95270196]
[1737142787867,0.047407,105400.0,105390.0,0.98812952]
[1737142788975,0.047407,105400.0,105390.0,1.39594676]
[1737142789361,0.13402787,105400.0,105390.0,1.39594676]
[1737142790165,0.047407,105400.0,105390.0,1.39594676]
[1737142790367,0.13402787,105400.0,105390.0,1.39594676]
[1737142791872,0.13402787,105400.0,105390.0,1.0597244]
[1737142792175,0.047407,105400.0,105390.0,1.0597244]
[1737142792375,0.13402787,105400.0,105390.0,1.0597244]
[1737142792577,0.13402787,105400.0,105390.0,1.0123124]
[1737142792871,0.58144874,105400.0,105390.0,0.6515124]
[1737142793172,0.58144874,105400.0,105390.0,0.49017129]
[1737142793671,0.88144874,105400.0,105390.0,0.37515829]
[1737142794278,0.88144874,105400.0,105390.0,0.06592592]
[1737142794577,0.88144874,105400.0,105380.0,0.22533102]
[1737142794578,0.047412,105390.0,105380.0,0.22533102]
[1737142794774,0.58145374,105390.0,105380.0,0.22533102]
[1737142796367,0.58145374,105390.0,105370.0,0.31166377]
[1737142796368,0.88145374,105390.0,105370.0,0.31166377]
[1737142796574,0.88145374,105390.0,105370.0,0.16982959]
[1737142796575,0.84683687,105380.0,105370.0,0.16982959]
[1737142797366,0.84683687,105380.0,105350.0,0.160129]
[1737142797570,0.04743,105350.0,105340.0,0.86355104]
[1737142798274,0.13405087,105350.0,105340.0,0.86355104]
[1737142798671,0.13405087,105350.0,105340.0,0.52555451]
[1737142801480,0.04743,105350.0,105340.0,0.61217538]
[1737142802983,0.557462,105370.0,105360.0,0.047425]
[1737142803281,0.557462,105370.0,105360.0,0.49484587]
[1737142803585,0.51004,105370.0,105360.0,0.49484587]
[1737142803772,0.51004,105370.0,105360.0,0.72224587]
[1737142803968,0.557461,105370.0,105360.0,0.72224587]
[1737142804676,0.557461,105370.0,105360.0,1.08304587]
[1737142805682,0.047421,105370.0,105360.0,1.08304587]
[1737142806377,0.047421,105370.0,105360.0,0.996425]
[1737142808177,0.13404187,105370.0,105360.0,0.996425]
[1737142809479,0.13404187,105370.0,105360.0,0.1152]
[1737142809973,0.13404187,105370.0,105360.0,0.523425]
[1737142810173,0.047421,105370.0,105360.0,0.523425]
[1737142810971,0.18146287,105370.0,105350.0,0.047428]
[1737142811178,0.08662087,105360.0,105350.0,0.74622453]
[1737142811685,0.49484587,105360.0,105350.0,0.33799653]
[1737142812278,0.04743,105350.0,105340.0,0.75135551]
[1737142813287,0.04743,105350.0,105340.0,1.04086953]
[1737142815082,0.04743,105350.0,105340.0,1.1274904]
[1737142815990,0.047421,105370.0,105350.0,0.09486]
[1737142816294,0.047419,105380.0,105370.0,0.047421]
[1737142816491,0.047419,105380.0,105370.0,0.13404187]
[1737142816687,1.12125087,105400.0,105370.0,0.85244187]
[1737142817004,0.047413,105390.0,105380.0,0.047412]
[1737142817189,0.13403387,105390.0,105380.0,0.047412]
[1737142817491,0.13403387,105390.0,105380.0,0.408212]
[1737142818886,0.13403387,105390.0,105380.0,0.3608]
[1737142819086,0.13403387,105390.0,105380.0,0.408216]
[1737142819281,0.047413,105390.0,105380.0,0.408216]
[1737142820295,0.047413,105390.0,105380.0,0.49483687]
[1737142820700,0.047413,105390.0,105380.0,0.408216]
[1737142820900,0.13403387,105390.0,105380.0,0.408216]
[1737142821494,0.047413,105390.0,105380.0,0.69104583]
[1737142823395,0.13403387,105390.0,105380.0,0.69104583]
[1737142824097,0.13403387,105390.0,105380.0,0.64362983]
[1737142824697,0.13403387,105390.0,105380.0,0.28282983]
[1737142825594,0.13403387,105390.0,105380.0,0.16859163]
[1737142826497,0.13403387,105390.0,105370.0,0.765817]
[1737142826700,0.047416,105380.0,105370.0,0.765817]
[1737142827492,0.047416,105380.0,105370.0,1.33467129]
[1737142828500,0.047416,105380.0,105370.0,1.42129216]
[1737142828799,0.4096302,105410.0,105400.0,0.047407]
[1737142829194,0.49625107,105410.0,105400.0,0.047407]
[1737142829698,0.49625107,105410.0,105400.0,0.21596512]
[1737142829998,0.50565554,105410.0,105400.0,0.21596512]
[1737142832207,0.41903467,105410.0,105400.0,0.21596512]
[1737142832394,0.41903467,105410.0,105400.0,0.44266512]
[1737142832594,0.50565554,105410.0,105400.0,0.44266512]
[1737142833191,0.41903467,105410.0,105400.0,0.44266512]
[1737142834101,0.41903467,105410.0,105400.0,0.52928599]
[1737142834896,0.41903467,105410.0,105400.0,0.44266512]
[1737142836596,0.05823467,105410.0,105400.0,0.44266512]
[1737142836797,0.05823467,105410.0,105400.0,0.56086512]
[1737142837011,0.05823467,105410.0,105400.0,0.392307]
[1737142838106,0.05823467,105410.0,105400.0,0.56086512]
[1737142839414,0.01082867,105410.0,105400.0,0.64748599]
[1737142840402,0.14485254,105410.0,105400.0,0.39525812]
[1737142840602,0.50565254,105410.0,105400.0,0.28175812]
[1737142840904,0.047407,105400.0,105390.0,0.38996612]
[1737142841104,0.13402787,105400.0,105390.0,0.38996612]
[1737142841307,0.047407,105400.0,105390.0,0.6709185]
[1737142841707,0.54123367,105410.0,105400.0,0.047407]
[1737142842009,0.18043367,105410.0,105400.0,0.047407]
[1737142844803,0.18043367,105410.0,105400.0,0.32835938]
[1737142845899,0.05823367,105410.0,105400.0,0.77578025]
[1737142846409,0.05680947,105410.0,105400.0,1.06454824]
[1737142848105,0.047399,105420.0,105400.0,1.06454824]
[1737142848305,1.036876,105430.0,105410.0,0.25702387]
[1737142848497,1.12349687,105430.0,105410.0,0.2449]
[1737142848702,0.047398,105420.0,105410.0,0.2923]
[1737142849409,0.047398,105420.0,105410.0,0.6531]
[1737142850408,0.047398,105420.0,105410.0,0.93405238]
[1737142850912,1.13313878,105430.0,105420.0,0.047398]
[1737142851112,0.51972191,105430.0,105420.0,0.49481887]
[1737142851515,0.51972191,105430.0,105420.0,0.61741887]
[1737142851717,0.65373678,105430.0,105420.0,0.408198]
[1737142853312,0.56711591,105430.0,105420.0,0.408198]
[1737142854008,0.65373678,105430.0,105420.0,0.047398]
[1737142856509,0.3608,105450.0,105440.0,0.04739]
[1737142856709,0.04739,105440.0,105430.0,0.047394]
[1737142856912,0.49481087,105440.0,105420.0,0.047397]
[1737142857120,0.13401587,105430.0,105420.0,0.047397]
[1737142857619,0.13401587,105430.0,105420.0,0.32834938]
[1737142858414,0.047395,105430.0,105420.0,0.32834938]
[1737142858617,0.047395,105430.0,105420.0,0.8405546]
[1737142859014,0.047395,105430.0,105420.0,0.8403624]
[1737142859921,0.047395,105430.0,105420.0,0.6158862]
[1737142862922,0.05675241,105430.0,105420.0,0.6158862]
[1737142864326,0.50417328,105430.0,105420.0,0.5686814]
[1737142864514,0.62237328,105430.0,105420.0,0.6160804]
[1737142865023,0.62237328,105430.0,105420.0,0.27179071]
[1737142865834,0.62237328,105430.0,105420.0,0.22439171]
[1737142867121,0.53575241,105430.0,105410.0,0.35841258]
[1737142867326,0.05675241,105430.0,105420.0,0.13401987]
[1737142867535,0.05675241,105430.0,105420.0,0.24791987]
[1737142868026,0.557234,105440.0,105420.0,0.24791987]
[1737142868227,0.557234,105440.0,105430.0,0.49481587]
[1737142868429,0.557234,105440.0,105430.0,0.60711587]
[1737142868637,0.557234,105440.0,105430.0,0.72661587]
[1737142869130,0.557234,105440.0,105430.0,0.36581587]
[1737142869430,0.557234,105440.0,105430.0,1.21447843]
[1737142870020,0.50984,105440.0,105430.0,1.21447843]
[1737142870217,0.50984,105440.0,105430.0,1.3010993]
[1737142870418,0.40222316,105460.0,105450.0,0.047386]
[1737142870623,0.40222316,105460.0,105450.0,0.13400687]
[1737142870830,0.44960516,105460.0,105450.0,0.164786]
[1737142871032,0.53622603,105460.0,105450.0,0.164786]
[1737142871728,0.40222316,105460.0,105450.0,0.164786]
[1737142871935,0.04142316,105460.0,105450.0,1.1866903]
[1737142875123,0.04142316,105460.0,105450.0,1.10006943]
[1737142876236,0.08880516,105460.0,105450.0,1.10006943]
[1737142876633,0.04142316,105460.0,105450.0,1.1866903]
[1737142877329,0.04142316,105460.0,105450.0,1.27331117]
[1737142877628,1.039516,105480.0,105470.0,0.047377]
[1737142877830,1.039516,105480.0,105470.0,0.077377]
[1737142878037,0.87064,105480.0,105470.0,0.16399787]
[1737142878434,0.88015181,105480.0,105470.0,0.16399787]
[1737142878628,0.00951181,105480.0,105470.0,0.52479787]
[1737142878834,0.27977,105490.0,105470.0,0.52479787]
[1737142879132,0.27977,105490.0,105480.0,0.047373]
[1737142879333,0.77131158,105500.0,105490.0,0.047368]
[1737142879533,0.41051158,105500.0,105490.0,0.047368]
[1737142880032,0.00142264,105510.0,105500.0,0.047364]
[1737142880232,0.00142264,105510.0,105500.0,0.49478487]
[1737142880546,0.08804351,105510.0,105500.0,0.047364]
[1737142880837,0.13540251,105510.0,105500.0,0.047364]
[1737142881929,0.13540251,105510.0,105500.0,0.408164]
[1737142882134,0.13540251,105510.0,105500.0,0.047364]
[1737142886039,0.17466438,105510.0,105490.0,0.4744]
[1737142886239,0.13398487,105500.0,105490.0,0.521768]
[1737142887941,0.00142264,105510.0,105500.0,0.047364]
[1737142888147,0.047347,105540.0,105500.0,0.58140574]
[1737142888440,0.05685738,105540.0,105530.0,0.49477087]
[1737142888636,0.00951038,105540.0,105530.0,0.49477087]
[1737142888945,0.767742,105550.0,105540.0,0.047346]
[1737142889136,0.767742,105550.0,105540.0,0.13396687]
[1737142889844,0.767742,105550.0,105540.0,0.047346]
[1737142890036,0.047346,105540.0,105530.0,0.04735]
[1737142890238,0.408146,105540.0,105530.0,0.04735]
[1737142890633,0.408146,105540.0,105530.0,0.13397087]
[1737142891946,0.77700621,105550.0,105540.0,0.047346]
[1737142892148,0.77700621,105550.0,105540.0,0.13396687]
[1737142892448,0.3608,105550.0,105540.0,0.13396687]
[1737142892648,0.408141,105550.0,105540.0,0.13396687]
[1737142895540,0.3608,105550.0,105540.0,0.13396687]
[1737142895848,0.68507294,105560.0,105550.0,0.047341]
[1737142896147,0.68507294,105560.0,105550.0,0.13396187]
[1737142896341,0.63773394,105560.0,105550.0,0.13396187]
[1737142896548,0.51943394,105560.0,105550.0,0.49476187]
[1737142896761,0.00971394,105560.0,105550.0,0.49476187]
[1737142896941,0.23622201,105570.0,105550.0,0.49476187]
[1737142897142,0.00142201,105570.0,105560.0,0.13395787]
[1737142897639,0.00939985,105590.0,105560.0,0.58137874]
[1737142897839,0.508119,105600.0,105580.0,0.49474887]
[1737142898044,0.508119,105600.0,105590.0,0.13394387]
[1737142899358,0.1,105600.0,105590.0,0.49474387]
[1737142899540,0.1,105600.0,105580.0,0.408127]
[1737142899744,0.047323,105590.0,105580.0,0.408127]
[1737142900042,0.047323,105590.0,105570.0,0.72635287]
[1737142900739,0.047323,105590.0,105580.0,0.08662087]
[1737142901250,0.047328,105580.0,105570.0,0.25414987]
[1737142901446,0.047328,105580.0,105570.0,0.1202]
[1737142901447,0.13394887,105580.0,105570.0,0.1202]
[1737142901645,0.047332,105570.0,105560.0,0.13395687]
[1737142903248,0.51887654,105600.0,105570.0,0.047332]
[1737142903445,0.047325,105590.0,105580.0,0.13394687]
[1737142903750,0.047325,105590.0,105580.0,0.047326]
[1737142904640,0.90637641,105600.0,105580.0,0.08662087]
[1737142904641,0.81975554,105600.0,105580.0,0.08662087]
[1737142904837,0.86707554,105600.0,105590.0,0.047323]
[1737142905050,0.95369641,105600.0,105590.0,0.047323]
[1737142906543,0.45895554,105600.0,105590.0,0.047323]
[1737142906741,0.45895554,105600.0,105590.0,0.13394387]
[1737142906942,0.44962117,105600.0,105590.0,0.408123]
[1737142907150,0.94436104,105600.0,105590.0,0.047323]
[1737142907349,0.047323,105590.0,105580.0,0.274126]
[1737142907647,0.047323,105590.0,105580.0,0.047326]
[1737142907852,0.13394387,105590.0,105580.0,0.047326]
[1737142908354,0.047323,105590.0,105580.0,0.047326]
[1737142910150,0.047323,105590.0,105580.0,0.048326]
[1737142911553,0.13394387,105590.0,105580.0,0.001]
[1737142911744,0.49474387,105590.0,105580.0,0.001]
[1737142912239,0.047332,105570.0,105560.0,0.35815587]
[1737142912444,0.047332,105570.0,105560.0,0.71895587]
[1737142912945,0.3608,105580.0,105560.0,0.71895587]
[1737142913150,0.40813,105580.0,105570.0,0.13395287]
[1737142913344,0.40813,105580.0,105570.0,0.047332]
[1737142914061,0.04733,105580.0,105570.0,0.047332]
[1737142915049,0.13395087,105580.0,105570.0,0.048332]
[1737142915253,0.49475087,105580.0,105570.0,0.001]
[1737142917758,0.49475087,105580.0,105570.0,0.002]
[1737142918147,0.40813,105580.0,105570.0,0.002]
[1737142918549,0.04733,105580.0,105570.0,0.3628]
[1737142918847,0.04733,105580.0,105570.0,0.49675287]
[1737142919046,0.04733,105580.0,105570.0,0.13595287]
[1737142919247,0.49475087,105580.0,105570.0,0.049332]
[1737142919950,0.40813,105580.0,105570.0,0.049332]
[1737142920350,0.40813,105580.0,105570.0,0.13595287]
[1737142920552,0.04733,105580.0,105570.0,0.049332]
[1737142920751,0.40813,105580.0,105570.0,0.049332]
[1737142920952,0.04733,105580.0,105570.0,0.049332]
[1737142921646,0.04733,105580.0,105570.0,0.13595287]
[1737142922564,0.04733,105580.0,105570.0,0.049332]
[1737142924764,0.49475087,105580.0,105570.0,0.002]
[1737142928660,0.04733,105580.0,105570.0,0.049334]
[1737142928856,0.40813,105580.0,105570.0,0.049334]
[1737142929067,0.49475087,105580.0,105570.0,0.002]
[1737142929967,0.49475087,105580.0,105570.0,0.22537639]
[1737142930459,0.49475087,105580.0,105570.0,0.27270739]
[1737142930665,0.40813,105580.0,105570.0,0.27270739]
[1737142931257,0.40813,105580.0,105570.0,0.35932826]
[1737142931456,0.40813,105580.0,105570.0,0.27244595]
[1737142931656,0.49475087,105580.0,105570.0,0.27244595]
[1737142931861,0.49475087,105580.0,105570.0,0.22511495]
[1737142932158,0.40813,105580.0,105570.0,0.22511495]
[1737142932363,0.49475087,105580.0,105570.0,0.22511495]
[1737142933066,0.04733,105580.0,105570.0,0.27244695]
[1737142933561,0.04733,105580.0,105570.0,0.35906782]
[1737142933961,0.04733,105580.0,105570.0,0.71986782]
[1737142934359,0.04733,105580.0,105570.0,0.83096782]
[1737142934762,0.04733,105580.0,105570.0,1.2917136]
[1737142935269,0.04733,105580.0,105570.0,1.20509273]
[1737142935860,0.04733,105580.0,105570.0,1.54308926]
[1737142936258,0.92668481,105590.0,105580.0,0.047327]
[1737142936463,0.56588481,105590.0,105580.0,0.047327]
[1737142936665,0.92668481,105590.0,105580.0,0.047327]
[1737142937171,1.01330568,105590.0,105580.0,0.27094618]
[1737142937569,0.65250568,105590.0,105580.0,0.27094618]
[1737142937767,0.50912,105590.0,105580.0,0.71836705]
[1737142937962,0.50912,105590.0,105580.0,1.06291146]